bitfinex-derivatives/quotes_BNBF0:USTF0_20250521
["timestamp","ask_amount","ask_price","bid_price","bid_amount"]
[1747833346635,1.50300269,653.48,652.33,0.60275229]
[1747833346837,1.50300269,653.48,652.34,0.60275229]
[1747833347040,1.50300269,653.48,652.35,0.60275229]
[1747833347341,1.50300269,653.48,652.36,0.60275229]
[1747833347540,1.50300269,653.48,652.37,0.60275229]
[1747833347740,1.50300269,653.48,652.38,0.60275229]
[1747833347940,1.50300269,653.48,652.39,0.60275229]
[1747833348141,1.50300269,653.48,652.4,0.60275229]
[1747833348342,1.50300269,653.48,652.41,0.60275229]
[1747833348641,0.26652881,653.56,652.42,0.6028061]
[1747833348642,1.50300269,653.46,652.42,0.6028061]
[1747833348840,1.50300269,653.46,652.26,0.12353924]
[1747833349041,1.50300269,653.46,652.27,0.6028061]
[1747833349243,1.50300269,653.46,652.28,0.6028061]
[1747833349442,1.50300269,653.46,652.29,0.6028061]
[1747833349642,0.26652881,653.56,652.3,0.6028061]
[1747833349844,0.26652881,653.56,652.31,0.6028061]
[1747833350038,0.97996782,657.21,652.32,0.6028061]
[1747833350241,0.97996782,657.21,652.33,0.6028061]
[1747833350442,0.26638803,653.56,652.34,0.6028061]
[1747833350741,0.97996782,654.84,652.35,0.6028061]
[1747833350939,0.97996782,654.84,652.36,0.6028061]
[1747833351137,0.97996782,654.84,652.37,0.60312357]
[1747833351341,0.26639211,654.83,652.38,0.60312357]
[1747833351544,0.26639211,654.83,652.39,0.60312357]
[1747833351842,0.26639211,654.83,652.4,0.60312357]
[1747833352044,0.26639211,654.83,652.41,0.60312357]
[1747833352345,0.26639211,654.83,652.42,0.60312357]
[1747833352544,0.26639211,654.83,652.43,0.60312357]
[1747833352749,1.50229528,653.42,652.44,0.60312357]
[1747833353045,1.50229528,653.42,652.28,0.12353278]
[1747833353340,1.50229528,653.42,652.29,0.60359995]
[1747833353546,1.50229528,653.42,652.3,0.60359995]
[1747833353745,1.50229528,653.42,652.31,0.60359995]
[1747833353947,1.50229528,653.42,652.32,0.60359995]
[1747833354242,1.50229528,653.42,652.33,0.60359995]
[1747833354449,1.50229528,653.42,652.28,0.12353278]
[1747833354450,1.50229528,653.42,652.34,0.60359995]
[1747833354745,1.50229528,653.42,652.35,0.60359995]
[1747833354942,1.50229528,653.35,652.36,0.60359995]
[1747833355142,1.50229528,653.35,652.37,0.60359995]
[1747833355345,1.50229528,653.35,652.38,0.60359995]
[1747833355545,1.50229528,653.35,652.39,0.60359995]
[1747833355745,1.50229528,653.35,652.4,0.60359995]
[1747833355947,1.50229528,653.35,652.41,0.60359995]
[1747833356146,1.50229528,653.35,652.31,0.12353278]
[1747833356147,1.50229528,653.35,652.42,0.60359995]
[1747833356342,1.50229528,653.35,652.43,0.60359995]
[1747833356547,1.50229528,653.35,652.44,0.60359995]
[1747833356841,1.50229528,653.35,652.45,0.60463589]
[1747833357046,1.50229528,653.35,652.46,0.60463589]
[1747833357243,1.50229528,653.35,652.47,0.60463589]
[1747833357448,1.50229528,653.35,652.48,0.60463589]
[1747833357652,1.50229528,653.22,652.37,0.12353278]
[1747833357845,1.50229528,653.22,652.38,0.60466999]
[1747833358047,1.50229528,653.22,652.39,0.60466999]
[1747833358344,1.50229528,653.22,652.4,0.60466999]
[1747833358545,1.50229528,653.22,652.41,0.60466999]
[1747833358741,1.50229528,653.22,652.42,0.60466999]
[1747833358946,1.50229528,653.22,652.37,0.12353278]
[1747833359148,1.50229528,653.22,652.38,0.60512579]
[1747833359348,1.50229528,653.22,652.39,0.60512579]
[1747833359550,1.50229528,653.22,652.4,0.60512579]
[1747833359848,1.50229528,653.22,652.41,0.60512579]
[1747833360048,1.50229528,653.22,652.42,0.60512579]
[1747833360349,1.50229528,653.22,652.37,0.12353278]
[1747833360649,1.50229528,653.24,652.38,0.60536134]
[1747833360842,1.50229528,653.24,652.39,0.60536134]
[1747833361046,1.50229528,653.24,652.4,0.60536134]
[1747833361246,1.50229528,653.24,652.41,0.60536134]
[1747833361444,1.50229528,653.24,652.42,0.60536134]
[1747833361649,1.50229528,653.24,652.43,0.60551163]
[1747833361843,1.50229528,653.24,652.25,0.12353278]
[1747833362646,1.50229528,653.24,652.26,0.60564278]
[1747833362851,1.50229528,653.24,652.27,0.60564278]
[1747833363047,1.50229528,653.24,652.28,0.60564278]
[1747833363247,1.50229528,653.11,652.33,0.12353278]
[1747833363447,1.50229528,653.11,652.34,0.60564278]
[1747833363652,1.50229528,653.11,652.35,0.60561989]
[1747833363843,1.50229528,653.11,652.33,0.12353278]
[1747833363844,1.50229528,653.11,652.36,0.60561989]
[1747833364045,1.50229528,653.11,652.37,0.60561989]
[1747833364248,1.50229528,653.11,652.38,0.60561989]
[1747833364545,0.98310883,655.0,652.39,0.60561989]
[1747833364546,0.26656351,653.58,652.39,0.60561989]
[1747833364748,0.26656351,653.58,652.4,0.60561989]
[1747833364948,0.26656351,653.58,652.41,0.60561989]
[1747833365152,0.26656351,653.58,651.98,0.26657679]
[1747833365948,0.26606013,658.14,651.95,0.26606522]
[1747833366148,0.26606013,658.14,651.96,0.60603853]
[1747833366449,0.26606013,658.14,651.97,0.60626134]
[1747833366645,0.98288168,654.86,651.98,0.60626134]
[1747833366846,0.98288168,654.86,651.99,0.60626134]
[1747833367049,1.50934885,653.22,652.37,0.12414981]
[1747833367249,1.50934885,653.22,652.38,0.60637072]
[1747833367446,1.50934885,653.22,652.39,0.60637072]
[1747833367646,1.50934885,653.22,652.4,0.60637072]
[1747833367850,1.50934885,653.22,652.41,0.60637072]
[1747833368050,1.50934885,653.22,652.42,0.60637072]
[1747833368248,1.50934885,653.22,652.43,0.60637072]
[1747833368446,1.50934885,653.22,652.44,0.60637072]
[1747833368748,1.50934885,653.22,652.45,0.60637072]
[1747833368948,1.50934885,653.22,652.46,0.60637072]
[1747833369145,1.50934885,653.22,652.47,0.60650162]
[1747833369452,1.50934885,653.22,652.48,0.60650162]
[1747833369649,1.50934885,653.22,652.49,0.60650162]
[1747833369850,1.50934885,653.22,652.5,0.60661129]
[1747833370050,1.50934885,653.2,652.51,0.60661129]
[1747833370250,1.50934885,653.2,652.52,0.60661129]
[1747833370451,1.50934885,653.2,652.53,0.60661129]
[1747833370647,1.50934885,653.2,652.54,0.60661129]
[1747833370854,1.50934885,653.2,652.55,0.60661129]
[1747833371051,1.50934885,653.2,652.56,0.60661129]
[1747833371249,1.50934885,653.2,652.57,0.60661129]
[1747833371451,1.50934885,653.2,652.58,0.60661129]
[1747833371653,1.50934885,653.2,652.4,0.12414981]
[1747833371850,1.50934885,653.2,652.41,0.6065415]
[1747833372150,1.50934885,653.2,652.4,0.12414981]
[1747833372858,1.50934885,653.19,652.4,0.12414981]
[1747833373059,1.50934885,653.19,652.41,0.60655214]
[1747833373259,1.50934885,653.19,652.4,0.12414981]
[1747833373459,1.50934885,653.19,652.41,0.60656281]
[1747833373759,1.50934885,653.19,652.42,0.60656281]
[1747833373959,1.50934885,653.19,652.43,0.60656281]
[1747833374155,2.26402327,653.34,652.44,0.60656281]
[1747833374356,2.26402327,653.34,652.1,0.24903409]
[1747833375456,0.26614254,657.13,652.5,0.60656281]
[1747833375760,0.26614254,657.13,652.51,0.60656281]
[1747833375958,0.26614254,657.13,652.52,0.60656281]
[1747833376157,0.26614254,657.13,652.53,0.60656281]
[1747833376360,0.98371997,654.93,652.54,0.60656281]
[1747833376556,0.98371997,654.93,652.55,0.60656281]
[1747833376762,0.98371997,654.93,652.56,0.60656281]
[1747833376964,1.51186818,653.2,652.57,0.60657914]
[1747833377160,1.51186818,653.2,652.58,0.60657914]
[1747833377361,1.51186818,653.2,652.42,0.12424973]
[1747833377561,1.51186818,653.2,652.43,0.60657508]
[1747833377762,1.51186818,653.2,652.44,0.60657508]
[1747833378057,1.51186818,653.2,652.45,0.60657508]
[1747833378261,2.26780227,653.35,652.46,0.60657508]
[1747833378460,7.55934092,654.69,652.47,0.60657508]
[1747833378659,7.55934092,654.69,652.03,0.26655024]
[1747833379762,0.98371997,654.55,652.53,0.60657508]
[1747833379965,0.98371997,654.55,652.54,0.60657508]
[1747833380163,0.98371997,654.55,652.55,0.60657508]
[1747833380369,0.26639925,654.54,652.56,0.60657508]
[1747833380567,0.26639925,654.54,652.57,0.60657508]
[1747833380766,0.98371997,654.55,652.58,0.60657508]
[1747833380969,0.98371997,654.55,652.59,0.60657041]
[1747833381263,1.51163356,653.14,652.6,0.60657041]
[1747833381468,1.51163356,653.14,652.45,0.12424312]
[1747833382069,1.51163356,653.14,652.46,0.60650908]
[1747833382261,1.51163356,653.14,652.47,0.60650908]
[1747833382462,1.51163356,653.14,652.48,0.60650908]
[1747833382666,1.51163356,653.14,652.49,0.60650908]
[1747833382868,1.51163356,653.14,652.5,0.60650908]
[1747833383064,1.51163356,653.14,652.51,0.60650908]
[1747833383272,1.51163356,653.14,652.52,0.60650908]
[1747833383571,1.51163356,653.14,652.53,0.60650908]
[1747833383765,1.51163356,653.14,652.45,0.12424312]
[1747833383766,1.51163356,653.14,652.54,0.60650908]
[1747833383970,1.51163356,653.36,652.55,0.60650908]
[1747833384266,1.51163356,653.36,652.56,0.60650908]
[1747833384466,1.51163356,653.36,652.57,0.60650908]
[1747833384665,1.51163356,653.36,652.58,0.60650908]
[1747833384864,1.51163356,653.36,652.59,0.60650908]
[1747833385070,1.51163356,653.36,652.6,0.60650908]
[1747833385270,1.51163356,653.36,652.61,0.60650908]
[1747833385470,1.51163356,653.36,652.62,0.60650908]
[1747833385770,1.51163356,653.36,652.63,0.60650908]
[1747833385970,1.51163356,653.36,652.64,0.60650908]
[1747833386270,1.51163356,653.36,652.65,0.60624493]
[1747833386565,1.51163356,653.36,652.66,0.60624493]
[1747833386871,1.51163356,653.36,652.67,0.60624493]
[1747833387069,1.51163356,653.36,652.68,0.60624493]
[1747833387271,1.51163356,653.36,652.69,0.60624493]
[1747833387470,1.51163356,653.36,652.7,0.60624493]
[1747833387667,1.51163356,653.36,652.71,0.60624493]
[1747833387868,1.51163356,653.36,652.72,0.60624493]
[1747833388070,1.51163356,653.36,652.53,0.12424312]
[1747833388266,1.51163356,653.36,652.54,0.60616317]
[1747833388467,1.51163356,653.36,652.55,0.60616317]
[1747833388667,1.51163356,653.36,652.56,0.60616317]
[1747833388872,1.51163356,653.36,652.57,0.60616317]
[1747833389069,1.51163356,653.36,652.58,0.60616317]
[1747833389274,1.51163356,653.36,652.59,0.60616317]
[1747833389479,1.51163356,653.4,652.6,0.60616317]
[1747833389670,1.51163356,653.4,652.5,0.12424312]
[1747833389872,1.51163356,653.4,652.61,0.60607209]
[1747833390070,1.51163356,653.4,652.62,0.60607209]
[1747833390273,1.51163356,653.4,652.63,0.60607209]
[1747833390472,1.51163356,653.4,652.64,0.60607209]
[1747833390773,1.51163356,653.4,652.65,0.60607209]
[1747833390971,1.51163356,653.4,652.66,0.60607209]
[1747833391173,1.51163356,653.4,652.67,0.60607209]
[1747833391375,1.51163356,653.4,652.68,0.60607209]
[1747833391575,1.51163356,653.4,652.69,0.60607209]
[1747833391775,1.51163356,653.4,652.7,0.60607209]
[1747833391975,1.51163356,653.39,652.71,0.60607209]
[1747833392276,1.51163356,653.39,652.5,0.12424312]
[1747833392477,1.51163356,653.39,652.51,0.60598343]
[1747833392677,1.51163356,653.39,652.52,0.60598343]
[1747833392878,1.51163356,653.39,652.53,0.60598343]
[1747833393079,1.51163356,653.39,652.54,0.60598343]
[1747833393279,1.51163356,653.39,652.55,0.60598343]
[1747833393481,1.51163356,653.39,652.56,0.60598343]
[1747833393682,1.51163356,653.39,652.57,0.60598343]
[1747833393881,1.51163356,653.39,652.58,0.60598343]
[1747833394181,1.51163356,653.39,652.59,0.60598343]
[1747833394480,1.51163356,653.39,652.6,0.60598343]
[1747833394781,1.51163356,653.39,652.61,0.60598343]
[1747833394981,1.51163356,653.39,652.62,0.60598343]
[1747833395281,1.51163356,653.39,652.5,0.12424312]
[1747833395481,1.51163356,653.39,652.51,0.60602465]
[1747833395682,1.51163356,653.39,652.52,0.60602465]
[1747833395882,1.51163356,653.39,652.53,0.60602465]
[1747833396083,1.51163356,653.39,652.54,0.60602465]
[1747833396284,1.51163356,653.39,652.55,0.60602465]
[1747833396478,1.51163356,653.39,652.56,0.60602465]
[1747833396678,1.51163356,653.47,652.57,0.60602465]
[1747833396981,1.51163356,653.47,652.58,0.60602465]
[1747833397278,1.51163356,653.47,652.59,0.60602465]
[1747833397481,1.51163356,653.47,652.38,0.12424312]
[1747833397482,1.51163356,653.47,652.6,0.60602465]
[1747833397775,1.51163356,653.47,652.61,0.60602465]
[1747833397981,1.51163356,653.47,652.62,0.60602465]
[1747833398180,1.51163356,653.47,652.38,0.12424312]
[1747833398379,1.51163356,653.47,652.39,0.6060753]
[1747833398584,1.51163356,653.47,652.4,0.6060753]
[1747833398884,1.51163356,653.25,652.46,0.12424312]
[1747833399084,1.51163356,653.25,652.47,0.6060753]
[1747833402183,1.51163356,653.17,652.47,0.73031842]
[1747833402387,1.51163356,653.17,652.48,0.6060753]
[1747833402583,1.51163356,653.17,652.49,0.60609673]
[1747833402782,1.51163356,653.17,652.5,0.60609673]
[1747833402983,1.51163356,653.17,652.47,0.12424312]
[1747833403688,1.51163356,653.17,652.48,0.60609636]
[1747833403884,1.51163356,653.17,652.49,0.60609636]
[1747833404081,1.51163356,653.17,652.5,0.60609636]
[1747833404289,1.51163356,653.17,652.51,0.60609636]
[1747833404489,1.51163356,653.17,652.52,0.60609636]
[1747833404689,1.51163356,653.17,652.53,0.60609636]
[1747833404889,1.51163356,653.17,652.54,0.60609636]
[1747833405090,1.51163356,653.17,652.55,0.60609636]
[1747833405293,1.51163356,653.17,652.56,0.60609636]
[1747833405586,1.51163356,653.17,652.57,0.60609636]
[1747833405786,1.51163356,653.17,652.58,0.60609636]
[1747833405990,1.51163356,653.17,652.59,0.60609636]
[1747833406185,1.51163356,653.17,652.6,0.60609636]
[1747833406386,2.26745034,653.28,652.26,0.24922176]
[1747833406590,0.26652677,653.65,652.27,0.6051232]
[1747833406787,0.26652677,653.65,652.28,0.6051232]
[1747833406989,0.98371997,654.46,652.29,0.6051232]
[1747833407191,0.98371997,654.46,652.3,0.6051232]
[1747833407487,0.98371997,654.46,652.31,0.6051232]
[1747833407683,0.98371997,654.46,652.32,0.6051232]
[1747833407887,0.98371997,654.46,652.33,0.6051232]
[1747833408093,0.26643188,654.45,652.34,0.6051232]
[1747833408286,0.26643188,654.45,652.35,0.6051232]
[1747833408487,0.26643188,654.45,652.36,0.60517925]
[1747833408688,0.98371997,654.37,652.37,0.60517925]
[1747833408894,0.98371997,654.37,652.06,0.26643188]
[1747833409188,1.51152534,653.12,652.39,0.12423797]
[1747833409794,1.51152534,653.12,652.4,0.60517942]
[1747833410092,1.51152534,653.12,652.41,0.60517942]
[1747833410292,1.51152534,653.12,652.42,0.60517942]
[1747833410489,1.51152534,653.12,652.43,0.60517942]
[1747833410691,1.51152534,653.12,652.44,0.60518181]
[1747833410992,1.51152534,653.12,652.45,0.60518181]
[1747833411188,1.51152534,653.12,652.46,0.60518181]
[1747833411388,1.51152534,653.12,652.4,0.12423797]
[1747833411389,1.51152534,653.12,652.47,0.60518181]
[1747833411587,1.51152534,653.12,652.48,0.60518181]
[1747833411791,1.51152534,653.12,652.49,0.60518181]
[1747833411994,0.26655943,653.58,652.5,0.60518181]
[1747833412195,0.26655943,653.58,652.51,0.60518181]
[1747833412396,0.26655943,653.58,652.52,0.60518181]
[1747833412588,0.26655943,653.58,652.53,0.60518181]
[1747833412789,0.26655943,653.58,652.54,0.60518181]
[1747833413092,0.26655943,653.58,652.06,0.26655943]
[1747833413293,0.26613643,653.58,652.56,0.60518181]
[1747833413488,0.26613643,653.58,652.57,0.60518181]
[1747833413687,0.26613643,653.58,652.06,0.26613643]
[1747833414390,0.26613745,657.58,652.09,0.60518793]
[1747833414590,0.26613745,657.58,652.1,0.60518793]
[1747833414793,0.26613745,657.58,652.11,0.60518793]
[1747833414991,0.26613745,657.58,652.12,0.60518793]
[1747833415191,0.26613745,657.58,652.13,0.60518793]
[1747833415396,0.26613745,657.58,652.14,0.60518793]
[1747833415694,0.98398458,654.59,652.15,0.60518793]
[1747833415896,1.5119636,653.16,652.45,0.12421912]
[1747833416092,1.5119636,653.16,652.46,0.60518793]
[1747833418200,1.5119636,653.17,652.47,0.60521601]
[1747833418499,1.5119636,653.17,652.48,0.60521601]
[1747833418799,1.5119636,653.17,652.49,0.60521601]
[1747833418998,1.5119636,653.17,652.5,0.60521601]
[1747833419200,1.5119636,653.17,652.51,0.60521601]
[1747833419400,1.5119636,653.17,652.52,0.60521601]
[1747833419600,1.5119636,653.17,652.53,0.60521601]
[1747833419795,1.5119636,653.17,652.38,0.12421912]
[1747833420000,1.5119636,653.17,652.39,0.60522435]
[1747833420203,1.5119636,653.17,652.4,0.60522435]
[1747833420400,1.5119636,653.17,652.38,0.12421912]
[1747833421903,1.5119636,653.17,652.39,0.60523467]
[1747833422102,1.5119636,653.17,652.4,0.60523467]
[1747833422302,1.5119636,653.17,652.41,0.60523467]
[1747833422502,1.5119636,653.17,652.42,0.60523467]
[1747833422695,1.5119636,653.17,652.43,0.60523467]
[1747833422900,1.5119636,653.17,652.44,0.60523467]
[1747833423101,1.5119636,653.17,652.45,0.60523467]
[1747833423301,1.5119636,653.17,652.46,0.60523467]
[1747833423603,1.5119636,653.17,652.47,0.60543267]
[1747833423802,1.5119636,653.17,652.48,0.60543267]
[1747833424002,1.5119636,653.17,652.49,0.60543267]
[1747833424204,1.5119636,653.17,652.5,0.60543267]
[1747833424404,1.5119636,653.17,652.51,0.60543267]
[1747833424603,1.5119636,653.17,652.52,0.60543267]
[1747833424804,1.5119636,653.17,652.53,0.60543267]
[1747833425005,1.5119636,653.17,652.37,0.12421912]
[1747833425305,1.5119636,653.17,652.38,0.6054384]
[1747833425505,1.5119636,653.17,652.39,0.6054384]
[1747833425704,1.5119636,653.17,652.4,0.6054384]
[1747833425905,1.5119636,653.17,652.41,0.6054384]
[1747833426106,1.5119636,653.17,652.37,0.12421912]
[1747833426307,1.5119636,653.03,652.27,0.12421912]
[1747833426506,1.5119636,653.03,652.28,0.60556603]
[1747833426707,1.5119636,653.03,652.29,0.60535535]
[1747833426906,1.5119636,653.03,652.3,0.60535535]
[1747833427205,1.5119636,653.03,652.27,0.12421912]
[1747833428911,1.5119636,652.86,652.08,0.12421912]
[1747833429208,1.5119636,652.86,652.09,0.60319707]
[1747833429402,1.5119636,652.86,652.1,0.60319707]
[1747833429605,1.5119636,652.86,652.11,0.60278561]
[1747833429806,1.5119636,652.86,652.12,0.60278561]
[1747833430004,1.5119636,652.86,652.13,0.60278561]
[1747833430211,1.5119636,652.86,652.08,0.12421912]
[1747833430409,1.5119636,652.87,652.09,0.60284537]
[1747833430606,1.5119636,652.87,652.1,0.60284537]
[1747833430806,1.5119636,652.87,652.11,0.60284537]
[1747833431008,1.5119636,652.87,652.12,0.60284537]
[1747833431309,1.5119636,652.87,652.13,0.60284537]
[1747833431510,1.5119636,652.87,652.02,0.12421912]
[1747833431712,1.5119636,652.87,652.03,0.60218116]
[1747833432005,1.5119636,652.87,652.04,0.60218116]
[1747833432206,1.5119636,652.87,652.05,0.60218116]
[1747833432410,1.5119636,652.87,652.06,0.60218116]
[1747833432608,1.5119636,652.87,652.07,0.60218116]
[1747833432808,1.5119636,652.87,652.08,0.60218116]
[1747833433010,1.5119636,652.89,652.09,0.60218116]
[1747833433208,1.5119636,652.89,652.1,0.6019518]
[1747833433406,1.5119636,652.89,651.99,0.12421912]
[1747833434713,1.5119636,652.89,652.0,0.60188018]
[1747833434908,1.5119636,652.89,652.01,0.60188018]
[1747833435107,1.5119636,652.93,652.02,0.60188018]
[1747833435307,1.5119636,652.93,652.03,0.60167239]
[1747833435510,1.5119636,652.93,652.04,0.60167239]
[1747833435708,1.5119636,652.93,651.97,0.12421912]
[1747833435709,1.5119636,652.93,652.05,0.60167239]
[1747833435909,1.5119636,652.93,652.06,0.60167239]
[1747833436108,1.5119636,652.93,652.07,0.60167239]
[1747833436311,1.5119636,652.93,652.08,0.60167239]
[1747833436512,1.5119636,652.93,651.97,0.12421912]
[1747833436709,1.5119636,652.93,651.98,0.60124529]
[1747833436910,1.5119636,652.93,651.99,0.60124529]
[1747833437113,1.5119636,652.93,652.0,0.60124529]
[1747833437314,1.5119636,652.93,652.01,0.60124653]
[1747833437515,1.5119636,652.93,652.02,0.60124653]
[1747833437815,1.5119636,652.97,652.03,0.60124653]
[1747833438116,1.5119636,652.97,652.04,0.60124653]
[1747833438410,1.5119636,652.97,652.05,0.60124653]
[1747833438623,1.5119636,652.97,652.06,0.60124653]
[1747833438820,1.5119636,652.97,652.07,0.60124653]
[1747833439019,1.5119636,652.97,652.08,0.60124653]
[1747833439219,1.5119636,652.97,652.09,0.60085019]
[1747833439412,1.5119636,652.97,652.1,0.60085019]
[1747833439613,1.5119636,652.97,652.11,0.60085019]
[1747833439814,1.5119636,652.97,652.12,0.60085019]
[1747833440018,1.5119636,652.97,651.95,0.12421912]
[1747833440518,1.5119636,653.08,651.98,0.12421912]
[1747833440714,1.5119636,653.08,651.99,0.60074602]
[1747833440913,1.5119636,653.08,652.0,0.60074602]
[1747833441117,1.5119636,653.08,652.01,0.60074602]
[1747833441314,1.5119636,653.08,652.02,0.60063759]
[1747833441514,1.5119636,653.08,652.03,0.60063759]
[1747833441718,1.5119636,653.08,652.04,0.60063759]
[1747833441920,1.5119636,653.08,652.05,0.60063759]
[1747833442122,1.5119636,653.08,652.06,0.60059356]
[1747833442322,1.5119636,653.08,652.07,0.60059356]
[1747833442519,1.5119636,653.08,652.08,0.60059356]
[1747833442716,1.5119636,653.08,652.09,0.60059356]
[1747833442922,1.5119636,653.07,651.94,0.12421912]
[1747833443119,1.5119636,653.07,651.95,0.60051928]
[1747833443320,1.5119636,653.07,651.96,0.60051928]
[1747833443520,1.5119636,653.07,651.97,0.60051928]
[1747833443822,1.5119636,653.07,651.98,0.60051928]
[1747833444121,1.5119636,653.07,651.99,0.60051928]
[1747833444316,1.5119636,653.07,652.0,0.60051928]
[1747833444516,1.5119636,653.07,652.01,0.60051928]
[1747833444822,1.5119636,653.07,652.02,0.60051928]
[1747833445021,1.5119636,653.05,652.03,0.60051928]
[1747833445221,1.5119636,653.05,652.04,0.60051928]
[1747833445418,1.5119636,653.05,652.05,0.60051928]
[1747833445622,1.5119636,653.05,652.06,0.60051928]
[1747833445816,1.5119636,653.05,652.07,0.60051928]
[1747833446016,1.5119636,653.05,652.08,0.60051928]
[1747833446221,1.5119636,653.05,651.95,0.12421912]
[1747833447127,1.5119636,653.05,651.96,0.60040821]
[1747833447327,1.5119636,653.05,651.97,0.60040821]
[1747833447529,1.5119636,653.05,651.98,0.60040821]
[1747833447726,1.5119636,653.05,651.99,0.60040821]
[1747833447924,1.5119636,653.05,652.0,0.60040821]
[1747833448123,1.5119636,653.05,652.01,0.60040821]
[1747833448426,1.5119636,653.05,652.02,0.60040821]
[1747833448627,1.5119636,653.05,652.03,0.60040821]
[1747833448828,1.5119636,653.05,652.04,0.60040821]
[1747833449027,1.5119636,653.05,652.05,0.60040071]
[1747833449224,1.5119636,653.05,651.95,0.12421912]
[1747833449225,1.5119636,653.05,652.06,0.60040071]
[1747833449425,1.5119636,653.05,652.07,0.60040071]
[1747833449625,1.5119636,653.05,652.08,0.60040071]
[1747833449826,1.5119636,653.05,652.09,0.60040071]
[1747833450025,1.5119636,653.05,652.1,0.60040071]
[1747833450332,1.5119636,653.05,652.11,0.60040071]
[1747833450526,1.5119636,653.05,652.12,0.60040071]
[1747833450730,1.5119636,653.05,652.13,0.60040071]
[1747833451032,1.5119636,653.11,652.14,0.60045916]
[1747833451227,1.5119636,653.11,652.0,0.12421912]
[1747833451430,1.5119636,653.11,652.01,0.60045916]
[1747833451632,1.5119636,653.11,652.02,0.60045916]
[1747833451839,1.5119636,653.11,652.03,0.60045916]
[1747833452034,1.5119636,653.11,652.04,0.60045916]
[1747833452334,1.5119636,653.11,652.05,0.60045916]
[1747833452528,1.5119636,653.11,652.06,0.60045916]
[1747833452728,1.5119636,653.11,652.07,0.60045916]
[1747833452928,1.5119636,653.11,652.08,0.60045916]
[1747833453131,1.5119636,653.11,652.09,0.60045916]
[1747833453327,1.5119636,653.11,652.1,0.60045916]
[1747833453534,1.5119636,653.11,652.11,0.60045916]
[1747833453830,1.5119636,653.08,651.97,0.12421912]
[1747833454029,1.5119636,653.08,651.98,0.60068726]
[1747833454233,1.5119636,653.08,651.99,0.60068726]
[1747833454434,1.5119636,653.08,652.0,0.60068726]
[1747833454634,1.5119636,653.08,652.01,0.60075583]
[1747833454834,1.5119636,653.08,652.02,0.60075583]
[1747833455036,1.5119636,653.08,652.03,0.60075583]
[1747833455235,1.5119636,653.08,652.04,0.60075583]
[1747833455435,1.5119636,653.08,651.97,0.12421912]
[1747833455436,1.5119636,653.08,652.05,0.60075583]
[1747833455632,1.5119636,653.08,652.06,0.60075583]
[1747833455836,1.5119636,653.08,651.97,0.12421912]
[1747833455837,1.5119636,653.08,652.07,0.60075583]
[1747833456138,1.5119636,653.08,652.08,0.60075583]
[1747833456338,1.5119636,653.08,652.09,0.60075583]
[1747833456533,1.5119636,653.08,652.1,0.60075583]
[1747833456739,1.5119636,653.06,651.95,0.12421912]
[1747833456938,1.5119636,653.06,651.96,0.60081565]
[1747833457238,1.5119636,653.06,651.97,0.60081565]
[1747833457438,1.5119636,653.06,651.98,0.60081565]
[1747833457640,1.5119636,653.06,651.99,0.60081565]
[1747833457940,1.5119636,653.06,652.0,0.60081565]
[1747833458235,1.5119636,653.06,652.01,0.60081565]
[1747833458440,1.5119636,653.06,652.02,0.60085425]
[1747833458638,1.5119636,653.06,652.03,0.60085425]
[1747833458834,1.5119636,653.06,652.04,0.60085425]
[1747833459039,1.5119636,653.06,652.05,0.60085425]
[1747833459337,1.5119636,653.06,652.06,0.60085425]
[1747833459535,1.5119636,653.03,652.07,0.60085425]
[1747833459741,1.5119636,653.03,651.92,0.12421912]
[1747833459941,1.5119636,653.03,651.93,0.60092994]
[1747833460241,1.5119636,653.03,651.94,0.60092994]
[1747833460442,1.5119636,653.03,651.95,0.60092994]
[1747833460641,1.5119636,653.03,651.96,0.60092994]
[1747833460842,1.5119636,653.03,651.97,0.60092994]
[1747833461043,1.5119636,653.03,651.98,0.60092994]
[1747833461337,1.5119636,653.03,651.99,0.60092994]
[1747833461541,1.5119636,653.03,652.0,0.60092994]
[1747833461735,1.5119636,653.03,651.92,0.12421912]
[1747833461736,1.5119636,653.03,652.01,0.60092994]
[1747833461939,1.5119636,653.02,652.02,0.60092994]
[1747833462142,1.5119636,653.02,651.9,0.12421912]
[1747833463044,1.5119636,653.02,651.91,0.60111474]
[1747833463244,1.5119636,653.02,651.92,0.60111474]
[1747833463444,1.5119636,653.02,651.93,0.60111474]
[1747833463644,1.5119636,653.02,651.94,0.60111474]
[1747833463844,1.5119636,653.02,651.95,0.60111474]
[1747833464047,1.5119636,653.02,651.96,0.60111474]
[1747833464246,1.5119636,653.02,651.97,0.60115456]
[1747833464445,1.5119636,653.02,651.98,0.60115456]
[1747833464641,1.5119636,653.02,651.99,0.60115456]
[1747833464845,1.5119636,652.95,652.0,0.60115456]
[1747833465046,1.5119636,652.95,652.01,0.60115456]
[1747833465347,1.5119636,652.95,651.86,0.12421912]
[1747833465548,1.5119636,652.95,651.87,0.60112282]
[1747833465742,0.26672389,653.05,651.88,0.60112282]
[1747833465947,0.26672389,653.05,651.89,0.60112282]
[1747833466145,0.26672389,653.05,651.9,0.60118753]
[1747833466342,0.26672389,653.05,651.91,0.60118753]
[1747833466545,0.26672389,653.05,651.92,0.60118753]
[1747833466745,0.26672389,653.05,651.93,0.60118753]
[1747833466941,0.26672389,653.05,651.94,0.60118753]